bitfinex/quotes_ETHUSD_20250508
["timestamp","ask_amount","ask_price","bid_price","bid_amount"]
[1746747936674,0.04556343,2194.3,2193.8,7.7346794]
[1746747936888,4.55707634,2194.4,2193.9,8.99135297]
[1746747937095,4.55707634,2194.4,2193.9,4.38777533]
[1746747937294,4.55766677,2194.2,2193.9,0.7689]
[1746747937896,4.55788514,2194.0,2193.9,0.7689]
[1746747938118,4.55788514,2194.0,2193.9,7.1679]
[1746747938313,0.7733,2195.2,2194.4,3.7556]
[1746747938512,4.55637466,2194.8,2194.5,6.399]
[1746747938891,4.55611097,2194.9,2194.5,6.399]
[1746747939217,4.55590345,2195.0,2194.5,6.399]
[1746747939218,4.55591312,2195.0,2194.5,6.399]
[1746747939419,4.55601621,2194.9,2194.4,0.7556]
[1746747939619,4.55678925,2194.6,2194.5,6.398]
[1746747939818,4.55650842,2194.7,2194.5,6.398]
[1746747940021,4.55655988,2194.7,2194.5,6.398]
[1746747940322,4.55663902,2194.6,2194.5,6.398]
[1746747940683,4.55654973,2194.7,2194.5,6.398]
[1746747941021,4.55653682,2194.7,2194.5,6.398]
[1746747941219,4.55637697,2194.8,2194.5,6.398]
[1746747941410,4.55643366,2194.7,2194.5,6.398]
[1746747941718,0.98849074,2195.0,2194.5,6.398]
[1746747941911,4.55660665,2194.7,2194.5,6.398]
[1746747942092,4.55663902,2194.6,2194.5,6.398]
[1746747942586,4.5565314,2194.7,2194.5,6.398]
[1746747942990,4.55605383,2194.9,2194.5,6.398]
[1746747943225,4.55605383,2194.9,2194.5,6.44356849]
[1746747943517,4.5559238,2195.0,2194.5,15.67014706]
[1746747943826,4.5561585,2194.9,2194.5,11.06773321]
[1746747944323,4.55624709,2194.8,2194.5,11.06773321]
[1746747945616,4.55684666,2194.5,2194.4,0.7556]
[1746747945821,0.55,2195.1,2194.4,7.1506]
[1746747946024,4.55653726,2194.7,2194.4,7.1506]
[1746747946525,4.55633809,2194.8,2194.4,7.1506]
[1746747947026,4.55649126,2194.7,2194.4,7.1506]
[1746747947220,4.55662069,2194.7,2194.4,7.1506]
[1746747947419,4.55580865,2195.0,2194.4,7.1506]
[1746747947622,4.55662896,2194.7,2194.4,7.1506]
[1746747947792,4.55665411,2194.6,2194.4,7.1506]
[1746747947992,4.55650321,2194.7,2194.4,7.1506]
[1746747948192,4.55627213,2194.8,2194.4,7.1506]
[1746747948418,4.55627213,2194.8,2194.4,11.70764089]
[1746747949024,4.55620097,2194.9,2194.5,4.55682318]
[1746747949226,4.55569684,2195.1,2194.5,4.55682318]
[1746747949227,4.55589107,2195.0,2194.5,4.60239132]
[1746747949394,4.5562543,2194.8,2194.5,0.04556814]
[1746747949594,4.55610999,2194.9,2194.5,5.5902898]
[1746747949819,4.55593341,2195.0,2194.5,9.20916513]
[1746747950318,4.55611492,2194.9,2194.5,9.20916513]
[1746747950521,4.55611492,2194.9,2194.5,4.65233347]
[1746747950707,0.7733,2195.2,2194.5,4.65233347]
[1746747950928,0.23076741,2196.2,2194.8,8.1749086]
[1746747950929,0.76,2195.5,2194.8,8.1749086]
[1746747951108,4.55539403,2195.2,2194.9,6.393]
[1746747951338,4.55525952,2195.3,2194.9,6.393]
[1746747951836,0.76,2195.5,2194.9,6.393]
[1746747951993,4.55599363,2195.0,2194.7,4.16668364]
[1746747952197,4.55599363,2195.0,2194.7,5.66513817]
[1746747952412,4.55599363,2195.0,2194.8,6.393]
[1746747952606,4.55599363,2195.0,2194.7,5.66513817]
[1746747952931,4.55599363,2195.0,2194.8,6.393]
[1746747953225,4.55601621,2194.9,2194.8,3.198]
[1746747953526,4.55601621,2194.9,2194.8,6.393]
[1746747953694,4.55593706,2195.0,2194.8,6.393]
[1746747954024,4.55601621,2194.9,2194.7,0.8308]
[1746747954230,4.55590053,2195.0,2194.7,7.2228]
[1746747955322,4.55603876,2194.9,2194.7,7.2228]
[1746747955731,4.55590962,2195.0,2194.7,7.2228]
[1746747955929,4.55546586,2195.2,2194.7,11.77920887]
[1746747956107,4.55561272,2195.1,2194.7,7.2228]
[1746747956820,0.76,2195.5,2194.8,3.66443647]
[1746747957137,4.5549746,2195.5,2195.1,0.7566]
[1746747957432,4.55518607,2195.3,2195.2,6.392]
[1746747957633,4.55508958,2195.4,2195.2,6.392]
[1746747957832,4.55472176,2195.6,2195.2,7.04094129]
[1746747958018,4.55874805,2196.0,2195.2,7.04094129]
[1746747958019,0.005,2196.0,2195.4,3.61887533]
[1746747958201,0.005,2196.0,2195.7,4.5543118]
[1746747958531,0.005,2196.0,2195.8,7.1476]
[1746747959035,0.005,2196.0,2195.9,0.04553561]
[1746747959330,0.005,2196.0,2195.9,1.9287887]
[1746747959497,0.005,2196.0,2195.9,1.58213583]
[1746747959697,0.005,2196.0,2195.9,2.37953583]
[1746747959939,0.005,2196.0,2195.9,32.30363216]
[1746747960099,0.005,2196.0,2195.9,25.09562755]
[1746747960299,0.005,2196.0,2195.9,15.12752755]
[1746747960832,0.005,2196.0,2195.9,23.34545176]
[1746747960996,0.005,2196.0,2195.9,18.12752755]
[1746747961198,0.005,2196.0,2195.9,11.64318155]
[1746747961406,0.005,2196.0,2195.9,16.19712298]
[1746747961715,0.005,2196.0,2195.9,16.54337405]
[1746747962810,0.005,2196.0,2195.9,11.71389462]
[1746747963135,0.005,2196.0,2195.7,6.383]
[1746747963355,4.55882625,2196.0,2195.7,6.42853872]
[1746747963564,4.55399115,2195.9,2195.7,6.383]
[1746747963759,0.005,2196.0,2195.7,6.383]
[1746747964237,4.55473204,2195.6,2195.3,4.41707533]
[1746747964448,4.55418858,2195.8,2195.4,7.54614669]
[1746747964615,4.55436035,2195.7,2195.4,1.16314669]
[1746747964817,4.55423576,2195.8,2195.4,4.16314669]
[1746747965118,0.80779122,2196.1,2195.3,0.7982]
[1746747965119,4.55497859,2195.4,2195.3,0.7982]
[1746747965309,4.55475992,2195.6,2195.4,6.382]
[1746747965512,4.55373406,2196.0,2195.1,3.0]
[1746747965513,4.55509972,2195.4,2195.1,3.0]
[1746747965739,4.55509972,2195.4,2195.2,6.382]
[1746747966040,4.55518607,2195.3,2195.2,6.382]
[1746747966239,4.55374379,2196.0,2195.2,6.382]
[1746747966240,0.55,2196.0,2195.2,6.382]
[1746747966544,4.55435624,2195.7,2195.2,6.382]
[1746747966704,4.55518607,2195.3,2195.2,6.382]
[1746747967662,5.37175722,2195.4,2195.2,3.191]
[1746747967825,4.55488664,2195.5,2195.2,3.191]
[1746747968508,4.55501507,2195.4,2195.2,3.191]
[1746747968708,4.554852,2195.5,2195.2,3.191]
[1746747969004,4.55408312,2195.9,2195.3,4.99837533]
[1746747969314,4.55364253,2196.1,2195.6,8.17341696]
[1746747969514,4.55396732,2195.9,2195.7,6.381]
[1746747970247,4.55395999,2195.9,2195.7,6.381]
[1746747970849,4.55385569,2196.0,2195.7,6.381]
[1746747971156,4.55394143,2195.9,2195.8,0.5]
[1746747972213,4.55497859,2195.4,2195.1,0.66398278]
[1746747972421,4.55513324,2195.4,2195.1,7.1632]
[1746747972655,4.55435624,2195.7,2195.1,7.1632]
[1746747972836,0.7798,2195.8,2195.1,7.20875383]
[1746747972837,4.55482225,2195.5,2195.1,7.20875383]
[1746747973221,5.33398953,2195.8,2195.1,7.20875383]
[1746747973425,4.55469242,2195.6,2195.1,7.20875383]
[1746747973752,4.55484104,2195.5,2195.1,7.87273661]
[1746747973939,4.55499547,2195.4,2195.1,7.1632]
[1746747974311,4.5548749,2195.5,2195.1,7.1632]
[1746747974519,4.55441089,2195.7,2195.2,4.55537752]
[1746747975047,4.55441089,2195.7,2195.1,12.38258874]
[1746747975233,4.55441089,2195.7,2195.2,5.21927954]
[1746747975424,4.55448687,2195.7,2195.2,5.21927165]
[1746747975621,5.33404817,2195.8,2195.2,0.66398278]
[1746747975622,0.7798,2195.8,2195.2,0.66398278]
[1746747975926,4.55496316,2195.5,2195.1,7.1632]
[1746747976547,4.55496316,2195.5,2195.1,11.71879686]
[1746747976872,1.40423432,2195.8,2195.1,7.1632]
[1746747977155,4.55478652,2195.5,2195.1,11.76431206]
[1746747977372,4.55478652,2195.5,2195.1,11.71876114]
[1746747977657,4.55450668,2195.7,2195.1,11.71876114]
[1746747977658,4.55468056,2195.6,2195.1,11.71876114]
[1746747977877,4.55478626,2195.5,2195.1,11.71876114]
[1746747978170,0.7798,2195.8,2195.1,11.71866408]
[1746747978325,4.55475552,2195.6,2195.1,11.71879251]
[1746747978504,4.55445695,2195.7,2195.1,11.71879251]
[1746747978712,4.55466788,2195.6,2195.1,11.71879251]
[1746747979021,5.3549706,2196.1,2195.5,8.17351987]
[1746747979222,4.55344981,2196.2,2195.7,4.5542644]
[1746747979421,5.35451272,2196.3,2195.8,3.61887533]
[1746747979752,4.55269747,2196.5,2196.1,0.7715]
[1746747979953,4.55270334,2196.5,2196.2,6.379]
[1746747980312,4.55293992,2196.4,2196.2,6.379]
[1746747980555,4.55281788,2196.5,2196.2,6.379]
[1746747980752,4.55266174,2196.6,2196.2,6.379]
[1746747981050,4.5522209,2196.8,2196.3,4.55297936]
[1746747981212,0.005,2196.9,2196.7,3.61887533]
[1746747981412,0.005,2196.9,2196.8,12.44397339]
[1746747981629,0.005,2196.9,2196.8,13.99558077]
[1746747982149,0.005,2196.9,2196.8,50.42575699]
[1746747982318,0.005,2197.2,2197.1,7.55145418]
[1746747982519,0.005,2197.2,2197.1,7.39317533]
[1746747983226,0.005,2197.2,2196.9,3.19]
[1746747983440,4.55166135,2197.0,2196.9,3.19]
[1746747983655,4.55634062,2197.2,2196.9,3.19]
[1746747983961,4.55159024,2197.1,2196.7,0.7765]
[1746747984115,4.55170895,2197.0,2196.7,0.7765]
[1746747984316,4.55202736,2196.9,2196.8,6.19]
[1746747984518,4.55174308,2197.0,2196.8,6.19]
[1746747984760,4.55186854,2196.9,2196.8,3.19]
[1746747985820,4.55249021,2196.6,2196.5,3.03014306]
[1746747986019,4.54619893,2196.6,2196.5,3.03014306]
[1746747986623,4.55229459,2196.7,2196.5,3.03014306]
[1746747987018,0.7883,2197.1,2196.5,3.03014306]
[1746747987231,4.55166135,2197.0,2196.6,0.766]
[1746747987433,5.339836,2197.1,2196.6,0.766]
[1746747987434,5.33986297,2197.1,2196.6,0.766]
[1746747987760,4.5516998,2197.0,2196.6,0.766]
[1746747988232,0.005,2197.2,2196.8,7.55195174]
[1746747988425,4.55625444,2197.2,2196.9,3.19]
[1746747988621,4.55164975,2197.1,2196.9,3.19]
[1746747988821,0.005,2197.2,2196.9,3.19]
[1746747989258,4.55166135,2197.0,2196.9,6.19]
[1746747989835,4.55166135,2197.0,2196.9,3.0]
[1746747991043,5.53940072,2197.0,2196.4,16.4]
[1746747991232,4.55228296,2196.7,2196.6,3.19]
[1746747992257,4.55264588,2196.6,2196.5,3.0]
[1746747992459,4.55264588,2196.6,2196.5,9.376]
[1746747992846,4.55264588,2196.6,2196.5,6.19]
[1746747993041,4.55220717,2196.8,2196.5,6.19]
[1746747993253,4.55228912,2196.7,2196.5,6.19]
[1746747993642,4.55212495,2196.8,2196.5,6.19]
[1746747993643,4.55219367,2196.8,2196.5,6.19]
[1746747994234,5.32455181,2197.2,2196.5,10.78813314]
[1746747994235,4.55176063,2197.0,2196.5,10.78813314]
[1746747994441,4.55188363,2196.9,2196.5,10.74260929]
[1746747994733,5.92318296,2196.7,2195.9,0.61019055]
[1746747994937,4.55477112,2195.5,2195.2,0.7877]
[1746747995242,5.10477112,2195.5,2194.7,0.8088]
[1746747995450,5.10477112,2195.5,2194.4,4.92995479]
[1746747995451,5.92747112,2195.5,2194.4,4.92995479]
[1746747995671,5.92747112,2195.5,2194.6,3.0]
[1746747995999,5.92747112,2195.5,2194.4,4.92995479]
[1746747996172,5.92747112,2195.5,2194.5,0.04555853]
[1746747996374,9.11247112,2195.5,2194.4,7.92995479]
[1746747996535,12.11247112,2195.5,2194.4,4.92995479]
[1746747996736,14.49136837,2195.5,2194.4,4.92995479]
[1746747996970,4.55580865,2195.0,2194.9,3.98781127]
[1746747998267,4.55567969,2195.1,2194.9,3.98781127]
[1746747998466,4.55518607,2195.3,2194.9,3.98781127]
[1746747998668,4.55580865,2195.0,2194.9,3.98781127]
[1746747999083,4.55579056,2195.1,2194.9,3.98781127]
[1746747999478,4.55545586,2195.2,2194.9,3.98781127]
[1746747999678,4.55545586,2195.2,2194.9,4.3865924]
[1746747999912,4.55555066,2195.2,2194.9,4.3865924]
[1746748000286,4.55529094,2195.3,2194.9,1.15528113]
[1746748000480,4.55518607,2195.3,2194.9,1.15528113]
[1746748001038,0.8227,2195.5,2194.9,1.15528113]
[1746748001039,4.55456065,2195.7,2195.1,4.55550735]
[1746748001208,4.55456368,2195.6,2195.1,6.187]
[1746748001523,0.7645,2196.1,2195.3,4.55515848]
[1746748001808,0.7645,2196.5,2195.7,4.55416645]
[1746748002100,0.7645,2196.5,2195.5,3.0]
[1746748002101,4.55290475,2196.4,2195.8,3.187]
[1746748002307,4.55394143,2195.9,2195.8,3.187]
[1746748003715,4.55381726,2196.0,2195.8,3.187]
[1746748003919,4.55347556,2196.2,2195.8,3.187]
[1746748004120,4.55354027,2196.1,2195.8,3.187]
[1746748004422,4.55288848,2196.5,2196.0,0.7747]
[1746748004586,4.55228296,2196.7,2196.0,0.7747]
[1746748004785,4.55305251,2196.4,2196.0,0.7747]
[1746748004981,4.55331936,2196.2,2196.1,1.15601431]
[1746748005221,0.8146,2196.8,2195.9,3.0]
[1746748005222,4.55373406,2196.0,2195.9,3.0]
[1746748006900,4.55373406,2196.0,2195.8,3.187]
[1746748006901,4.55394143,2195.9,2195.8,3.187]
[1746748007115,4.55394143,2195.9,2195.8,6.187]
[1746748007921,4.55435624,2195.7,2195.6,3.187]
[1746748008127,4.55435624,2195.7,2195.6,6.187]
[1746748008722,0.7574,2196.2,2195.6,3.187]
[1746748009030,4.55435624,2195.7,2195.6,3.8243]
[1746748009238,4.55421617,2195.8,2195.6,3.8243]
[1746748009413,4.55404127,2195.9,2195.6,3.8243]
[1746748010429,4.55435624,2195.7,2195.6,3.8243]
[1746748010628,4.55435624,2195.7,2195.6,3.187]
[1746748011495,4.55425516,2195.8,2195.6,3.187]
[1746748011696,4.55365261,2196.1,2195.7,0.8202]
[1746748011897,0.8008,2196.5,2195.7,0.8202]
[1746748012098,4.55326206,2196.3,2195.9,3.0]
[1746748012298,4.55278661,2196.5,2196.0,3.0]
[1746748012511,4.55296252,2196.4,2196.0,3.04553285]
[1746748012750,4.55296252,2196.4,2196.1,3.187]
[1746748013229,4.55270493,2196.5,2196.1,3.187]
[1746748013430,5.35189005,2196.8,2196.1,3.187]
[1746748013603,4.55302261,2196.4,2196.1,3.187]
[1746748013798,4.55331936,2196.2,2196.1,3.187]
[1746748014110,4.55331936,2196.2,2196.1,6.187]
[1746748014445,4.55322162,2196.3,2196.1,6.187]
[1746748014648,4.55300358,2196.4,2196.1,6.187]
[1746748014814,4.5527725,2196.5,2196.2,3.8460326]
[1746748015011,4.55255656,2196.6,2196.2,0.8460326]
[1746748015215,4.55285175,2196.5,2196.2,0.8005]
[1746748015440,4.55311205,2196.3,2196.2,0.8005]
[1746748015740,4.55282002,2196.5,2196.2,0.8005]
[1746748015902,4.55291412,2196.4,2196.2,1.53462811]
[1746748016945,4.55294522,2196.4,2196.2,0.8005]
[1746748017145,4.55166135,2197.0,2196.2,3.8005]
[1746748017313,4.55245112,2196.7,2196.2,8.353678]
[1746748017518,4.5527044,2196.5,2196.2,3.8005]
[1746748017737,4.5527044,2196.5,2196.2,0.8005]
[1746748017738,4.55274121,2196.5,2196.2,0.8005]
[1746748017915,0.7526,2197.1,2196.2,9.0524148]
[1746748018107,0.7526,2197.1,2196.3,0.04552723]
[1746748018108,4.55249645,2196.6,2196.3,0.04552723]
[1746748018307,4.55249645,2196.6,2196.4,3.185]
[1746748020055,0.005,2197.2,2196.5,3.0]
[1746748020205,0.005,2197.2,2196.7,3.0]
[1746748020410,4.55167348,2197.0,2196.7,3.0]
[1746748020728,4.55207574,2196.8,2196.7,4.76410817]
[1746748021043,4.5563256,2197.2,2196.7,28.14671686]
[1746748021209,4.5563256,2197.2,2196.8,0.04551572]
[1746748021529,4.55145418,2197.1,2196.9,3.185]
[1746748021727,4.55166135,2197.0,2196.9,6.185]
[1746748023114,4.5514819,2197.1,2196.9,6.185]
[1746748023316,4.55166135,2197.0,2196.9,6.185]
[1746748023719,4.55154012,2197.1,2196.9,9.37]
[1746748024155,3.65877812,2197.4,2196.9,9.37]
[1746748024449,4.55133196,2197.2,2196.9,9.37]
[1746748024629,4.55137987,2197.2,2197.0,0.937]
[1746748024953,4.55166135,2197.0,2196.9,9.37]
[1746748025112,4.55148927,2197.1,2196.9,9.37]
[1746748025746,4.55148764,2197.1,2196.9,9.37]
[1746748026353,4.55065725,2197.5,2197.0,0.7766]
[1746748026550,4.55145418,2197.1,2196.9,9.37]
[1746748026764,4.55166135,2197.0,2196.9,9.37]
[1746748027321,4.5515775,2197.1,2196.9,9.37]
[1746748028559,0.7589,2197.7,2196.9,14.94098739]
[1746748028560,4.55098778,2197.4,2196.9,14.94098739]
[1746748028769,4.41058677,2197.8,2197.0,0.04550958]
[1746748028937,4.55095025,2197.4,2197.1,0.7765]
[1746748029120,4.54959053,2198.0,2197.0,3.0]
[1746748029121,4.55145418,2197.1,2197.0,3.0]
[1746748029321,4.55136667,2197.2,2197.0,3.0]
[1746748029760,4.55095207,2197.4,2197.0,3.0]
[1746748029943,4.5505141,2197.6,2197.0,15.31222085]
[1746748030145,9.10113247,2197.6,2197.2,3.8084]
[1746748030460,4.55070892,2197.5,2197.2,0.8084]
[1746748030854,4.55027432,2197.7,2197.2,0.8084]
[1746748030855,4.55054223,2197.6,2197.2,0.85390652]
[1746748031043,4.54981715,2197.9,2197.2,0.85390652]
[1746748031228,4.55062796,2197.5,2197.2,1.9276049]
[1746748031829,4.55000455,2197.8,2197.2,1.9276049]
[1746748032026,4.55061147,2197.6,2197.2,0.85390652]
[1746748032366,4.55071293,2197.5,2197.4,3.0]
[1746748032657,4.55130101,2197.2,2197.0,6.11]
[1746748032873,4.55071293,2197.5,2196.8,6.367]
[1746748032874,4.55145418,2197.1,2196.8,6.367]
[1746748033175,4.5518425,2197.0,2196.8,6.367]
[1746748033462,4.5518425,2197.0,2196.9,6.183]
[1746748034443,4.5518425,2197.0,2196.5,10.66264308]
[1746748034444,4.55207574,2196.8,2196.5,6.11]
[1746748034632,4.55207574,2196.8,2196.6,6.367]
[1746748034633,4.55243192,2196.7,2196.6,6.367]
[1746748034833,4.55249021,2196.6,2196.5,3.183]
[1746748035137,0.7871,2197.0,2196.5,6.367]
[1746748035138,4.55219541,2196.8,2196.5,6.367]
[1746748035547,4.55216328,2196.8,2196.5,7.46356097]
[1746748035734,4.55223244,2196.8,2196.6,3.0]
[1746748035935,4.55195738,2196.9,2196.6,3.0]
[1746748036180,4.5513445,2197.2,2196.7,4.55227315]
[1746748036382,4.5513445,2197.2,2196.8,3.0]
[1746748036871,4.55145501,2197.1,2196.8,3.0]
[1746748037172,4.55133262,2197.2,2196.8,3.04551502]
[1746748037560,4.55146967,2197.1,2196.7,1.58218691]
[1746748037757,4.55146967,2197.1,2196.8,3.0]
[1746748038072,4.55134559,2197.2,2196.8,1.14207601]
[1746748038244,0.7928,2197.8,2196.9,0.7536]
[1746748038449,5.34235217,2198.1,2197.3,0.7536]
[1746748038785,4.55042798,2197.6,2197.3,0.7536]
[1746748039272,4.55022184,2197.7,2197.3,1.58409664]
[1746748039478,4.54980151,2197.9,2197.4,0.04550382]
[1746748039768,4.54980151,2197.9,2197.5,9.367]
[1746748039976,0.09488544,2197.8,2197.6,0.04549797]
[1746748040357,4.64491077,2197.8,2197.5,9.367]
[1746748040660,0.09488544,2197.8,2197.5,9.367]
[1746748041034,0.09488544,2197.8,2197.6,0.04549792]
[1746748041256,4.55000455,2197.8,2197.7,3.0]
[1746748042153,0.8217,2198.3,2197.7,3.0]
[1746748042154,4.54968731,2198.0,2197.7,3.0]
[1746748042396,4.54968731,2198.0,2197.8,0.8114]
[1746748042895,4.54979753,2197.9,2197.8,0.8114]
[1746748043080,4.55000455,2197.8,2197.7,3.0]
[1746748043902,4.55000455,2197.8,2197.7,9.365]
[1746748044080,5.45998476,2197.8,2197.7,6.183]
[1746748044293,5.45998476,2197.8,2197.7,3.0]
[1746748045186,5.54760283,2197.8,2197.7,3.0]
[1746748046811,4.5506735,2197.5,2197.3,3.8114]
[1746748047105,0.8122,2198.1,2197.4,9.365]
[1746748047278,4.54937686,2198.2,2197.6,8.16116517]
[1746748047608,4.54939115,2198.1,2197.7,10.1419]
[1746748047794,4.54939115,2198.1,2197.7,14.69208994]
[1746748047999,4.54849594,2198.6,2198.1,0.7769]
[1746748048198,4.54849594,2198.6,2198.3,3.0]
[1746748048199,4.54885745,2198.4,2198.3,3.0]
[1746748049511,4.54885745,2198.4,2198.0,6.183]
[1746748049512,4.54938355,2198.1,2198.0,6.183]
[1746748049723,4.54926607,2198.2,2198.0,9.365]
[1746748049880,4.54938355,2198.1,2198.0,9.365]
[1746748050207,4.54929205,2198.2,2198.0,9.365]
[1746748050407,0.98637245,2198.4,2198.0,9.365]
[1746748050613,4.54938355,2198.1,2198.0,9.365]
[1746748050777,4.54929229,2198.2,2198.0,9.365]
[1746748051311,4.54796636,2198.8,2198.0,13.99012249]
[1746748051483,4.54795532,2198.8,2198.1,3.8011]
[1746748051683,0.7823,2198.9,2198.1,3.8011]
[1746748051684,4.549114,2198.3,2198.1,3.8011]
[1746748051886,4.54917659,2198.2,2198.1,3.8011]
[1746748052074,4.54917659,2198.2,2198.1,7.1651]
[1746748052277,4.54793523,2198.8,2198.2,3.0]
[1746748052485,4.54886043,2198.4,2198.2,3.04548873]
[1746748052778,5.32829231,2199.2,2198.5,3.0]
[1746748052981,4.54814208,2198.7,2198.6,10.1353]
[1746748053709,4.54917659,2198.2,2198.1,6.362]
[1746748053915,4.54959053,2198.0,2197.9,0.7713]
[1746748054111,4.54948513,2198.1,2197.9,7.1333]
[1746748054428,4.54948513,2198.1,2198.0,3.0]
[1746748054996,4.54968176,2198.0,2197.8,3.0]
[1746748055194,4.54968176,2198.0,2197.9,9.362]
[1746748055591,4.54896965,2198.3,2197.9,9.362]
[1746748055787,4.54959053,2198.0,2197.9,9.362]
[1746748056092,4.54948806,2198.1,2197.9,9.362]
[1746748056299,4.54856743,2198.5,2198.0,0.8146]
[1746748056300,4.54892946,2198.4,2198.0,0.8146]
[1746748056522,0.7761,2198.9,2198.2,4.54917451]
[1746748056729,0.7761,2198.9,2198.1,1.8337153]
[1746748056893,0.7761,2198.9,2197.9,6.362]
[1746748056894,4.54938355,2198.1,2197.9,6.362]
[1746748057094,4.54969932,2198.0,2197.9,6.362]
[1746748057320,4.54969932,2198.0,2197.9,9.362]
[1746748057511,4.54969932,2198.0,2197.9,6.181]
[1746748058598,0.90991353,2198.0,2197.4,3.181]
[1746748058801,0.7761,2197.9,2197.4,3.181]
[1746748059020,4.54999026,2197.9,2197.5,3.0]
[1746748059226,4.55009942,2197.8,2197.4,3.22650291]
[1746748059415,0.7761,2198.2,2197.4,3.181]
[1746748059623,0.7761,2198.2,2197.5,3.04550083]
[1746748059624,4.55010209,2197.8,2197.5,3.04550083]
[1746748059810,4.55021158,2197.7,2197.6,1.07773145]
[1746748060203,4.55021158,2197.7,2197.5,3.0]
[1746748060526,0.7761,2198.2,2197.5,3.0]
[1746748060733,4.55012161,2197.8,2197.5,3.0]
[1746748060899,4.5499184,2197.9,2197.5,3.0]
[1746748061100,4.55035421,2197.7,2197.5,3.0]
[1746748061336,4.55041863,2197.6,2197.5,3.0]
[1746748062331,4.55041863,2197.6,2197.5,6.181]
[1746748062707,4.55030208,2197.7,2197.5,7.19866]
[1746748063041,0.7761,2198.2,2197.5,7.24416437]
[1746748063042,4.54991052,2197.9,2197.5,7.24416437]
[1746748063244,4.55000548,2197.8,2197.5,10.85509686]
[1746748063416,4.55031913,2197.7,2197.5,10.80959249]
[1746748063740,4.55041863,2197.6,2197.5,6.181]
[1746748063906,4.55011784,2197.8,2197.5,6.181]
[1746748064740,4.54876273,2198.4,2197.6,0.7528]
[1746748064902,4.5493094,2198.2,2197.7,4.55008252]
[1746748065108,4.54907224,2198.3,2198.0,0.7519]
[1746748065344,4.54896965,2198.3,2198.2,3.0]
[1746748065508,4.54896965,2198.3,2198.1,6.362]
[1746748065509,4.54917659,2198.2,2198.1,6.362]
[1746748065705,4.54917659,2198.2,2197.7,3.7519]
[1746748065937,4.54959053,2198.0,2197.9,3.0]
[1746748067332,4.54955387,2198.1,2197.9,3.0]
[1746748067529,4.54959053,2198.0,2197.9,3.9361]
[1746748067735,5.32670405,2198.6,2198.0,0.7519]
[1746748067736,0.7783,2198.6,2198.0,0.7519]
[1746748068045,4.5487691,2198.4,2198.1,3.04548961]
[1746748068253,4.54897434,2198.3,2198.1,0.04548961]
[1746748068433,4.54920448,2198.2,2198.0,3.7519]
[1746748068742,4.5489773,2198.3,2198.1,0.4688]
[1746748069046,4.54917659,2198.2,2198.1,0.4688]
[1746748069217,4.54917659,2198.2,2198.0,3.7519]
[1746748069542,4.54898843,2198.3,2198.0,3.79739004]
[1746748069751,0.7783,2199.2,2198.1,4.36283249]
[1746748070042,4.54832934,2198.7,2198.2,3.04548044]
[1746748070212,4.54849451,2198.6,2198.4,3.0]
[1746748070412,4.54819539,2198.7,2198.4,3.04548382]
[1746748070719,4.54838178,2198.6,2198.4,3.04548382]
[1746748070906,4.54792671,2198.9,2198.4,3.04548382]
[1746748071112,0.7797,2199.5,2198.5,0.7928]
[1746748071419,4.54834894,2198.6,2198.5,0.7928]
[1746748071620,4.54819141,2198.7,2198.6,3.0]
[1746748071621,4.54820978,2198.7,2198.6,3.0]
[1746748071826,4.54820978,2198.7,2198.6,9.361]
[1746748073755,4.54820978,2198.7,2198.6,3.0]
[1746748074710,4.54834894,2198.6,2198.5,6.361]
[1746748074914,4.54820978,2198.7,2198.5,6.361]
[1746748074915,4.54821906,2198.7,2198.5,6.361]
[1746748075115,5.32731368,2199.0,2198.5,6.361]
[1746748075350,5.32731368,2199.0,2198.6,3.0]
[1746748075351,4.54794962,2198.8,2198.6,3.0]
[1746748075549,4.54791529,2198.9,2198.6,3.0]
[1746748075550,4.54778032,2198.9,2198.6,3.0]
[1746748075752,4.54746147,2199.1,2198.6,4.01663859]
[1746748076051,4.5465124,2199.5,2198.6,4.01663859]
[1746748076052,1.1083239,2200.1,2199.4,3.0]
[1746748076254,0.2888239,2200.1,2199.6,3.83]
[1746748076426,4.54587086,2199.8,2199.6,3.83]
[1746748076625,4.54607446,2199.7,2199.6,3.0]
[1746748076825,4.54607446,2199.7,2199.6,9.364]
[1746748077044,4.5458608,2199.9,2199.6,9.364]
[1746748077352,4.54556816,2200.0,2199.6,12.97493249]
[1746748077553,0.2888239,2200.1,2199.6,12.97493249]
[1746748077740,4.83417327,2200.1,2199.6,17.52121256]
[1746748077941,0.2888239,2200.1,2199.8,0.8244]
[1746748078926,4.54566116,2199.9,2199.8,0.8244]
[1746748079117,4.83413468,2200.1,2199.5,3.7927]
[1746748079118,0.2888239,2200.1,2199.5,3.7927]
[1746748079323,4.54587813,2199.8,2199.7,3.0]
[1746748080421,4.54553336,2200.0,2199.7,3.0]
[1746748080616,4.54555288,2200.0,2199.8,0.7927]
[1746748080823,0.2888239,2200.1,2200.0,3.0]
[1746748081055,0.2888239,2200.1,2200.0,4.66210929]
[1746748081556,8.50277086,2200.7,2200.3,3.0]
[1746748081858,3.95865635,2200.7,2200.3,3.0]
[1746748082061,4.54442172,2200.5,2200.4,9.379]
[1746748082247,4.5443199,2200.6,2200.4,9.379]
[1746748082567,2.43123591,2201.1,2201.0,0.7872]
[1746748082731,5.71140054,2201.3,2201.0,13.80113249]
[1746748082920,5.71140054,2201.3,2201.1,8.79624132]
[1746748083128,4.54297655,2201.2,2201.1,0.7872]
[1746748083466,4.54297655,2201.2,2201.1,3.0]
[1746748083646,1.47971675,2201.2,2200.5,17.1602]
[1746748083858,5.71140054,2201.3,2200.4,3.247]
[1746748083859,0.8271,2200.9,2200.4,3.247]
[1746748084264,5.71140054,2201.3,2200.4,0.7872]
[1746748084462,4.54297655,2201.2,2200.4,7.2952]
[1746748084767,0.8271,2200.9,2200.4,6.508]
[1746748084939,4.54380225,2200.8,2200.4,6.508]
[1746748085141,0.8271,2200.9,2200.4,6.508]
[1746748085348,4.54392841,2200.8,2200.3,0.04544087]